bitfinex-derivatives/quotes_ETHF0:USTF0_20250116
["timestamp","ask_amount","ask_price","bid_price","bid_amount"]
[1737018451829,3.2078,3304.3,3304.0,0.6054]
[1737018452031,3.2078,3304.3,3304.2,2.43733002]
[1737018452232,0.60531,3304.6,3304.2,3.80633002]
[1737018452540,3.2078,3304.7,3304.2,3.80633002]
[1737018452932,3.81309,3304.7,3304.4,0.60534]
[1737018453133,0.60533,3304.5,3304.3,0.60535]
[1737018453438,0.60531,3304.6,3304.2,1.369]
[1737018453633,3.2078,3304.7,3304.4,0.60534]
[1737018453839,3.2078,3304.7,3304.2,1.369]
[1737018454042,3.2078,3304.7,3303.9,4.9006]
[1737018454242,0.60542,3304.0,3303.9,4.9006]
[1737018454544,0.60544,3303.9,3303.7,1.369]
[1737018454740,2.5182,3304.1,3303.7,1.369]
[1737018455042,0.60544,3303.9,3303.7,1.369]
[1737018455234,2.5182,3304.1,3303.7,1.369]
[1737018455635,0.60545,3303.8,3303.7,1.369]
[1737018455835,4.8028,3304.0,3303.7,1.97447]
[1737018456038,5.40822,3304.0,3303.7,1.97447]
[1737018456242,5.40822,3304.0,3303.3,4.9721]
[1737018456243,3.2078,3303.8,3303.3,4.9721]
[1737018456541,3.81326,3303.8,3303.4,0.60553]
[1737018456745,3.2078,3303.8,3303.5,0.6055]
[1737018456939,3.2078,3303.8,3303.6,0.60549]
[1737018457345,3.2078,3303.8,3303.3,8.1799]
[1737018457540,3.2078,3304.2,3303.4,2.43733002]
[1737018457845,3.2078,3304.2,3303.7,0.60546]
[1737018458040,0.60542,3304.0,3303.5,1.369]
[1737018458245,0.60545,3303.9,3303.5,1.97449]
[1737018458446,2.5626,3303.9,3303.6,0.60549]
[1737018458950,3.16804,3303.9,3303.6,0.60548]
[1737018459145,2.5626,3303.9,3303.5,1.369]
[1737018459446,3.16805,3303.9,3303.6,0.60549]
[1737018459652,2.5626,3303.9,3303.7,0.60546]
[1737018459945,3.16804,3303.9,3303.6,0.60548]
[1737018460351,2.5626,3303.9,3303.6,0.60548]
[1737018460745,2.5626,3303.9,3303.3,8.1799]
[1737018460947,2.5626,3303.9,3303.7,0.60547]
[1737018461143,2.5626,3303.9,3303.6,0.60548]
[1737018461345,3.16804,3303.9,3303.6,0.60548]
[1737018461546,2.5626,3303.9,3303.3,8.1799]
[1737018461746,2.5626,3303.9,3303.7,0.60547]
[1737018461953,2.5626,3303.9,3303.6,0.60548]
[1737018462155,2.5626,3303.9,3303.3,8.1799]
[1737018462450,2.5626,3303.9,3303.6,0.60547]
[1737018462646,2.5626,3303.9,3303.3,8.1799]
[1737018462848,3.16804,3303.9,3303.6,0.60548]
[1737018463350,2.5626,3303.9,3303.6,0.60548]
[1737018463551,2.5626,3303.9,3303.3,8.1799]
[1737018463854,2.5626,3303.9,3303.6,0.60548]
[1737018464652,0.60546,3303.8,3303.4,0.60553]
[1737018464850,2.4601,3303.8,3303.3,9.5489]
[1737018465051,2.4601,3303.8,3303.6,0.60547]
[1737018465452,2.5626,3303.9,3303.7,0.60547]
[1737018465950,2.5626,3303.9,3303.6,0.60548]
[1737018466153,0.60543,3304.0,3303.6,0.60548]
[1737018466357,0.60543,3304.0,3303.6,0.60547]
[1737018466555,0.60543,3304.0,3303.4,2.43733002]
[1737018466556,3.1175,3304.1,3303.7,0.60545]
[1737018466854,3.2078,3304.2,3303.7,2.43733002]
[1737018467056,3.2078,3304.2,3303.9,0.60542]
[1737018467249,3.2078,3304.2,3303.7,2.43733002]
[1737018467449,3.2078,3304.2,3303.4,2.43733002]
[1737018467648,0.60544,3303.9,3303.6,0.60548]
[1737018468356,0.60544,3303.9,3303.3,8.1799]
[1737018468656,0.60541,3304.1,3303.7,0.60546]
[1737018469147,0.60542,3304.0,3303.7,0.60546]
[1737018469643,3.2078,3304.2,3303.4,2.43733002]
[1737018469845,0.60547,3303.7,3303.5,0.6055]
[1737018470048,0.60546,3303.8,3303.5,0.6055]
[1737018471247,0.60544,3303.9,3303.6,0.60549]
[1737018471443,3.2078,3304.2,3303.4,2.43733002]
[1737018471655,0.60546,3303.8,3303.5,0.6055]
[1737018472053,0.60546,3303.8,3303.5,0.60551]
[1737018472253,3.2078,3304.2,3303.4,2.43733002]
[1737018472453,0.60545,3303.9,3303.5,0.60551]
[1737018472654,3.2078,3304.2,3303.7,2.43733002]
[1737018472957,0.60542,3304.0,3303.7,3.04279002]
[1737018473155,0.60543,3304.0,3303.7,3.04279002]
[1737018473546,0.60544,3303.9,3303.7,2.43733002]
[1737018473747,3.2078,3304.2,3303.7,2.43733002]
[1737018474055,0.60542,3304.0,3303.8,0.60545]
[1737018474255,0.60542,3304.0,3303.7,3.04279002]
[1737018474554,3.2078,3304.2,3303.7,3.04279002]
[1737018474859,0.60542,3304.0,3303.7,2.43733002]
[1737018475047,0.60542,3304.0,3303.7,3.04279002]
[1737018475246,3.2078,3304.2,3303.7,3.04279002]
[1737018475453,0.60544,3303.9,3303.7,3.04279002]
[1737018475759,0.60545,3303.9,3303.7,2.43733002]
[1737018476256,3.2078,3303.8,3303.7,2.43733002]
[1737018476451,3.81325,3303.8,3303.7,2.43733002]
[1737018477357,3.2078,3303.8,3303.7,2.43733002]
[1737018477556,3.2078,3303.8,3303.7,3.04280002]
[1737018478259,3.2078,3303.8,3303.7,2.43733002]
[1737018478952,3.81325,3303.8,3303.7,2.43733002]
[1737018479259,3.2078,3303.8,3303.7,3.04280002]
[1737018479553,3.2078,3303.8,3303.4,2.43733002]
[1737018479755,3.81326,3303.8,3303.5,0.6055]
[1737018480956,0.60564,3302.8,3302.7,4.72731867]
[1737018481454,3.7910048,3302.8,3302.7,4.72731867]
[1737018481662,11.2795048,3302.8,3302.7,4.72731867]
[1737018482055,3.2078,3302.9,3302.4,2.43733002]
[1737018482363,3.2078,3302.9,3302.5,4.858]
[1737018482563,0.60567,3302.7,3302.5,4.858]
[1737018482763,0.60564,3302.8,3302.5,5.46369]
[1737018482974,3.2078,3302.9,3302.5,5.46368]
[1737018483261,0.60564,3302.8,3302.5,4.858]
[1737018483564,3.81343,3302.9,3302.5,4.858]
[1737018483756,3.81343,3302.9,3302.6,0.60567]
[1737018483956,3.2078,3302.9,3302.8,0.60564]
[1737018485460,3.2078,3303.7,3302.8,8.2078]
[1737018485659,3.2078,3303.7,3303.6,0.60549]
[1737018485855,0.60544,3303.9,3303.5,3.04283002]
[1737018486057,0.60544,3303.9,3303.6,4.6977]
[1737018486558,5.69739213,3304.0,3303.6,4.6977]
[1737018486752,8.0038,3304.1,3303.8,2.43733002]
[1737018486753,4.796,3304.1,3303.8,2.43733002]
[1737018486956,5.4014,3304.1,3303.6,7.9055]
[1737018487161,2.3505,3304.1,3303.8,0.60544]
[1737018487358,0.60539,3304.2,3303.9,0.60543]
[1737018487561,0.60539,3304.2,3303.8,0.60544]
[1737018488061,3.2078,3304.5,3304.3,0.60536]
[1737018488358,3.47286363,3304.4,3304.0,3.2078]
[1737018488564,4.07822363,3304.4,3304.0,3.81321]
[1737018488763,0.60534,3304.4,3304.0,3.81322]
[1737018489059,3.2078,3304.5,3303.7,2.3566]
[1737018489264,7.85031,3304.7,3304.2,0.60537]
[1737018489558,3.50479416,3304.4,3303.9,2.43733002]
[1737018489864,0.60532,3304.6,3304.1,0.60538]
[1737018490067,7.245,3304.7,3304.1,0.60538]
[1737018490259,3.2078,3304.5,3303.8,3.2078]
[1737018490661,3.81452878,3304.4,3304.0,0.60542]
[1737018490862,3.20916878,3304.4,3304.1,0.60539]
[1737018491465,3.20916878,3304.4,3304.2,0.60538]
[1737018491863,3.20916878,3304.4,3304.2,0.60537]
[1737018492161,3.20916878,3304.4,3303.9,2.43733002]
[1737018492752,3.20916878,3304.4,3304.3,3.81316]
[1737018492959,5.69739213,3305.2,3305.1,0.60522]
[1737018493360,5.69739213,3305.2,3305.1,4.41055002]
[1737018494051,6.83687056,3305.7,3305.6,3.04246002]
[1737018494258,2.5635,3306.1,3305.9,0.60506]
[1737018494866,2.5635,3306.1,3305.6,5.64513002]
[1737018495168,2.5635,3306.1,3305.7,0.60509]
[1737018495370,2.5635,3306.1,3305.2,3.759]
[1737018495371,3.2078,3305.9,3305.2,3.759]
[1737018495567,3.2078,3305.9,3305.3,0.60517]
[1737018495568,2.983,3305.8,3305.3,0.60517]
[1737018495757,2.3779,3305.8,3305.2,2.391]
[1737018496065,2.3779,3305.8,3304.6,4.72731867]
[1737018496066,3.81295,3305.5,3305.0,0.60523]
[1737018496268,2.5327,3305.4,3305.0,0.60522]
[1737018496462,2.5327,3305.4,3304.8,2.43733002]
[1737018496463,3.13787,3305.4,3304.8,2.43733002]
[1737018496659,2.5327,3305.4,3304.9,0.60523]
[1737018496866,2.5327,3305.4,3304.8,2.43733002]
[1737018497064,2.5327,3305.4,3305.0,0.60522]
[1737018497265,2.5327,3305.4,3305.1,0.60521]
[1737018497467,2.5327,3305.4,3305.0,0.60522]
[1737018497969,2.5327,3305.4,3305.3,0.60518]
[1737018498367,3.2078,3305.5,3305.3,2.43733002]
[1737018498567,3.2078,3305.5,3305.4,0.60516]
[1737018498771,3.2078,3305.5,3305.4,5.51666]
[1737018499170,3.2078,3305.5,3304.8,3.2078]
[1737018499362,2.3747,3305.4,3304.5,2.43733002]
[1737018499562,2.3747,3305.4,3304.6,1.368]
[1737018499563,0.60525,3305.0,3304.6,1.368]
[1737018499762,2.3986,3305.3,3304.6,1.368]
[1737018499763,2.3986,3305.3,3304.8,2.43733002]
[1737018499967,2.3986,3305.3,3304.6,1.368]
[1737018500269,2.3986,3305.3,3304.4,5.7349]
[1737018500270,2.3986,3305.3,3304.8,2.43733002]
[1737018500470,2.3986,3305.3,3305.0,0.60522]
[1737018500667,2.3986,3305.3,3305.1,2.43733002]
[1737018500868,3.2078,3305.5,3305.1,2.43733002]
[1737018501068,3.2078,3305.5,3305.4,3.04249002]
[1737018501370,3.2078,3305.9,3305.4,5.64513002]
[1737018501576,3.2078,3305.9,3305.8,0.60509]
[1737018502169,3.2078,3305.9,3305.5,3.8929]
[1737018502170,2.3986,3306.1,3305.9,0.60507]
[1737018502375,2.3986,3306.1,3305.7,2.43733002]
[1737018502677,2.3986,3306.1,3305.8,0.60508]
[1737018503368,2.3986,3306.1,3305.5,1.368]
[1737018503568,4.7966,3306.1,3305.5,1.368]
[1737018503769,4.7966,3306.1,3305.7,0.60509]
[1737018504170,4.7966,3306.1,3305.7,0.6051]
[1737018504364,4.7966,3306.1,3305.5,1.368]
[1737018504764,4.7966,3306.1,3305.8,0.60507]
[1737018506076,4.7966,3306.1,3305.6,1.367]
[1737018506376,4.7966,3306.1,3305.9,0.60506]
[1737018506572,4.7966,3306.1,3305.6,1.367]
[1737018506772,4.7966,3306.1,3306.0,0.60505]
[1737018506978,4.7966,3306.1,3305.6,1.367]
[1737018507172,4.7966,3306.1,3305.7,2.43733002]
[1737018507372,2.3986,3306.1,3305.9,0.60506]
[1737018507677,2.3986,3306.1,3306.0,0.60505]
[1737018508378,2.3986,3306.1,3306.0,3.04238002]
[1737018509570,2.5008,3306.5,3306.4,0.60498]
[1737018509772,2.3231,3306.8,3306.7,0.60492]
[1737018510169,3.2078,3306.9,3306.6,2.43733002]
[1737018510369,13.83211429,3308.1,3307.3,0.60481]
[1737018510370,2.3231,3307.4,3307.3,0.60481]
[1737018510574,2.3231,3307.4,3307.3,3.04214002]
[1737018510980,2.3231,3307.4,3307.3,4.40914002]
[1737018511375,3.2078,3307.8,3307.7,0.60474]
[1737018512173,3.2078,3307.8,3307.6,3.04209002]
[1737018512484,3.2078,3307.8,3307.4,0.60478]
[1737018512676,3.2078,3307.8,3307.3,1.367]
[1737018512981,0.60475,3307.7,3307.3,1.367]
[1737018513181,3.2078,3307.8,3307.3,1.367]
[1737018513681,0.60476,3307.7,3307.3,1.367]
[1737018514077,3.2078,3307.4,3307.3,1.367]
[1737018514775,3.8126,3307.4,3307.3,1.367]
[1737018514980,3.8126,3307.4,3306.9,2.97818]
[1737018514981,3.2078,3307.4,3307.0,0.60485]
[1737018515186,4.7203,3307.3,3306.7,1.366]
[1737018515377,0.60487,3307.1,3306.7,1.366]
[1737018515684,3.8127,3306.9,3306.5,1.366]
[1737018515872,3.2078,3306.9,3306.8,0.60491]
[1737018516182,5.84939188,3307.2,3307.0,0.60487]
[1737018516183,2.5414,3307.2,3307.0,0.60487]
[1737018516385,2.5414,3307.2,3307.1,0.60485]
[1737018516574,4.7203,3307.3,3307.2,0.60483]
[1737018516772,2.3652,3307.3,3307.2,0.60483]
[1737018516973,3.2078,3307.9,3307.8,0.60472]
[1737018518978,2.3652,3308.2,3307.7,3.80333002]
[1737018519278,2.3652,3308.2,3307.9,0.60469]
[1737018519980,2.3652,3308.2,3307.7,2.87227138]
[1737018520181,2.3652,3308.2,3308.0,0.60468]
[1737018520473,2.3652,3308.2,3307.8,3.09791]
[1737018520787,2.3652,3308.2,3307.9,0.60469]
[1737018521080,2.3652,3308.2,3307.8,43.2932]
[1737018521478,2.3652,3308.2,3308.1,3.47694138]
[1737018523080,2.4596,3308.5,3308.1,2.87227138]
[1737018523276,2.4596,3308.5,3308.4,0.60461]
[1737018523686,2.4596,3308.5,3308.4,1.97061]
[1737018523991,2.4486,3308.6,3308.5,0.60459]
[1737018524192,5.026,3311.4,3308.5,0.60459]
[1737018524193,3.2078,3309.3,3309.2,0.60447]
[1737018524583,2.3854,3309.7,3309.5,0.6044]
[1737018524779,2.3854,3309.7,3309.4,0.60442]
[1737018524984,2.3854,3309.7,3309.5,0.60439]
[1737018525185,2.3854,3309.7,3309.1,4.23827138]
[1737018525389,2.3854,3309.7,3309.6,0.60439]
[1737018526285,3.2078,3309.9,3309.8,0.60436]
[1737018526685,2.3854,3310.3,3309.8,3.2078]
[1737018526886,2.3854,3310.3,3310.2,0.60428]
[1737018527089,3.2078,3310.5,3310.4,0.60425]
[1737018527279,5.7134,3310.9,3310.8,0.60417]
[1737018527480,5.7134,3310.9,3310.7,1.366]
[1737018527481,2.5056,3310.9,3310.7,1.366]
[1737018527679,3.2078,3311.3,3310.8,2.87227138]
[1737018527891,3.2078,3311.3,3311.1,0.60411]
[1737018528185,3.2078,3311.3,3310.4,2.4043]
[1737018528186,0.6041,3311.2,3310.4,0.60424]
[1737018528393,3.2078,3310.9,3310.4,0.60425]
[1737018528591,2.5056,3310.8,3310.4,3.47650138]
[1737018528789,3.2078,3310.9,3310.6,0.60421]
[1737018528987,3.81196,3310.9,3310.4,2.87227138]
[1737018529188,3.81196,3310.9,3310.3,1.366]
[1737018529189,2.5056,3310.8,3310.3,1.366]
[1737018529689,3.2078,3310.5,3310.0,2.87227138]
[1737018529891,3.2078,3310.5,3310.1,0.6043]
[1737018530087,3.2078,3310.5,3310.2,0.60428]
[1737018530394,3.2078,3310.5,3310.0,4.23727138]
[1737018530585,3.2078,3310.5,3310.1,0.6043]
[1737018531094,3.2078,3310.5,3310.2,0.60427]
[1737018531292,3.2078,3310.5,3310.1,0.6043]
[1737018531790,3.2078,3310.9,3310.6,0.6042]
[1737018531995,3.2078,3310.9,3310.5,0.60422]
[1737018532179,3.2078,3310.9,3310.4,2.87227138]
[1737018532890,3.2078,3310.9,3310.0,4.23727138]
[1737018533093,3.81197,3310.9,3310.3,0.60426]
[1737018533595,3.81197,3310.9,3310.3,0.60425]
[1737018533892,3.2078,3310.9,3310.1,0.6043]
[1737018534093,3.2078,3310.9,3310.4,0.60424]
[1737018534490,3.81196,3310.9,3310.4,0.60424]
[1737018534789,3.2078,3310.9,3310.4,0.60424]
[1737018534990,3.81196,3310.9,3310.4,0.60424]
[1737018535187,3.2078,3310.9,3310.0,4.23727138]
[1737018535497,3.2078,3310.9,3310.4,2.87227138]
[1737018535795,3.2078,3310.9,3310.6,0.6042]
[1737018536092,0.00299893,3310.7,3310.6,0.6042]
[1737018536287,0.00299893,3310.7,3310.4,2.87227138]
[1737018536490,0.00299893,3310.7,3310.3,0.60425]
[1737018536694,0.00299893,3310.7,3310.2,3.2078]
[1737018536695,0.00299893,3310.7,3310.4,0.60424]
[1737018536993,0.00299893,3310.7,3310.2,3.2078]
[1737018537291,0.00299893,3310.7,3310.3,0.60425]
[1737018537495,2.39619893,3310.7,3310.3,0.60425]
[1737018538397,3.00040893,3310.7,3310.2,0.60428]
[1737018538785,2.39619893,3310.7,3310.0,2.87227138]
[1737018539096,3.2078,3310.1,3309.9,0.60434]
[1737018539396,2.4347,3310.0,3309.9,0.60434]
[1737018540589,0.60437,3309.8,3309.2,1.364]
[1737018540792,2.4347,3310.0,3309.0,3.2078]
[1737018540793,3.2078,3309.7,3309.0,3.2078]
[1737018540991,0.60451,3309.0,3308.5,0.60458]
[1737018541201,2.4347,3308.9,3308.4,7.44407138]
[1737018541393,4.8912,3308.9,3308.5,0.60458]
[1737018541599,4.8912,3308.9,3308.4,7.44407138]
[1737018541787,2.4347,3308.9,3308.8,0.60454]
[1737018541990,3.2078,3309.7,3308.8,6.68461138]
[1737018542191,2.4565,3309.8,3309.6,2.87227138]
[1737018542405,2.3927,3310.1,3310.0,0.60432]
[1737018543295,4.9485,3310.6,3309.8,0.60436]
[1737018543499,4.9485,3310.6,3310.3,0.60425]
[1737018543801,2.4565,3310.6,3310.0,6.08007138]
[1737018543998,3.21079893,3310.7,3310.6,0.60421]
[1737018544487,3.21079893,3310.7,3310.6,1.96921]
[1737018544690,0.00299893,3310.7,3310.6,1.96921]
[1737018545204,8.93e-06,3310.7,3310.6,6.96921]
[1737018545798,8.93e-06,3310.7,3310.6,47.76921]
[1737018546198,8.93e-06,3310.7,3310.6,42.76921]
[1737018546597,3.2078,3311.2,3310.6,42.165]
[1737018546800,3.2078,3311.2,3311.1,0.60412]
[1737018547897,3.2078,3311.7,3310.9,3.2078]
[1737018548099,3.2078,3311.7,3311.5,0.60403]
[1737018548298,3.2078,3311.7,3311.3,2.87227138]
[1737018548487,3.81182,3311.7,3311.2,0.6041]
[1737018548688,3.81182,3311.7,3311.3,0.60408]
[1737018548689,3.2078,3311.7,3311.3,0.60408]
[1737018549399,3.2078,3311.7,3311.1,0.60412]
[1737018549601,0.60403,3311.6,3311.1,0.60412]
[1737018549799,3.81182,3311.7,3311.2,0.6041]
[1737018549998,0.60403,3311.6,3311.1,0.60411]
[1737018550199,0.60403,3311.6,3311.0,1.364]
[1737018550200,0.60409,3311.3,3311.0,1.364]
[1737018550405,2.95266,3311.5,3311.0,1.96814]
[1737018550696,0.60408,3311.4,3311.0,1.364]
[1737018550900,3.8119,3311.2,3310.9,2.87227138]
[1737018551398,2.4346,3311.1,3310.9,2.87227138]
[1737018552898,4.817,3311.1,3310.9,2.87227138]
[1737018553200,4.817,3311.1,3311.0,0.60414]
[1737018553402,3.2078,3311.2,3310.9,2.87227138]
[1737018553594,3.2078,3311.2,3311.1,0.60412]
[1737018554701,3.2078,3311.7,3310.9,2.87227138]
[1737018555103,0.60405,3311.5,3311.0,0.60412]
[1737018555410,3.2078,3311.7,3310.9,2.87227138]
[1737018555597,0.60403,3311.6,3311.2,0.6041]
[1737018555996,3.2078,3311.7,3310.9,2.87227138]
[1737018556195,2.4127,3312.0,3310.9,2.87227138]
[1737018556196,3.2078,3311.3,3310.9,2.87227138]
[1737018556605,3.2078,3311.3,3310.9,5.24237138]
[1737018556807,3.2078,3311.3,3311.1,0.60412]
[1737018557007,3.2078,3311.3,3311.2,0.6041]
[1737018557413,3.81189,3311.3,3311.0,0.60412]
[1737018557609,3.2078,3311.3,3311.1,0.60412]
[1737018558509,3.2078,3311.3,3310.9,2.87227138]
[1737018559108,3.2078,3311.3,3311.2,0.6041]
[1737018561515,3.2078,3311.3,3311.0,2.5238]
[1737018561706,3.2078,3311.3,3311.2,0.6041]
[1737018562314,3.2078,3311.7,3311.6,0.60403]
[1737018562511,3.2078,3311.7,3311.6,3.47630138]
[1737018562712,3.2078,3311.7,3311.6,4.84030138]
[1737018563215,2.3824,3312.1,3312.0,0.60396]
[1737018563604,2.3824,3312.1,3311.7,2.5087]
[1737018563807,2.3824,3312.1,3311.6,4.23627138]
[1737018564008,3.2078,3311.8,3311.2,2.87227138]
[1737018564403,3.2078,3311.4,3311.2,2.87227138]
[1737018564607,3.2078,3311.4,3311.3,0.60408]
[1737018564817,0.60401,3311.7,3311.4,0.60406]
[1737018565019,3.2078,3311.6,3311.2,2.87227138]
[1737018565213,0.60412,3311.1,3310.8,3.47643138]
[1737018565610,3.2078,3311.6,3310.8,2.87227138]
[1737018565819,0.60407,3311.4,3311.1,0.60411]
[1737018566115,2.5715,3311.5,3310.9,2.87227138]
[1737018566617,0.60407,3311.4,3311.2,0.60409]
[1737018566911,0.60409,3311.3,3311.0,0.60413]
[1737018567117,2.3361,3311.2,3311.0,0.60413]
[1737018567315,2.9402,3311.2,3311.0,0.60413]
[1737018567518,0.60412,3311.1,3310.9,2.42685009]
[1737018567719,2.3361,3311.2,3310.9,2.42685009]
[1737018567916,2.3361,3311.2,3310.9,3.03101009]
[1737018568217,2.3361,3311.2,3310.7,3.81199]
[1737018568218,0.60415,3311.0,3310.7,3.81199]
[1737018568419,0.60415,3311.0,3310.7,3.2078]
[1737018568719,0.60409,3311.3,3311.0,0.60413]
[1737018569220,4.8176,3311.4,3311.2,0.6041]
[1737018569423,5.42167,3311.4,3311.2,3.03095009]
[1737018569717,4.8176,3311.4,3311.2,2.42685009]
[1737018570111,4.8176,3311.4,3311.3,0.60408]
[1737018570306,2.3361,3311.4,3311.3,0.60408]
[1737018571217,2.3361,3311.4,3310.9,4.82435009]
[1737018571416,2.3361,3311.4,3311.3,0.60408]
[1737018572116,3.81178,3311.9,3311.3,0.60408]
[1737018572117,3.2078,3311.9,3311.3,0.60408]
[1737018572325,3.142,3311.8,3311.2,2.86735563]
[1737018572622,0.60401,3311.7,3311.4,0.60405]
[1737018572816,2.538,3311.8,3310.9,2.3975]
[1737018573015,0.60408,3311.4,3311.0,0.60414]
[1737018573323,0.60408,3311.4,3311.1,0.60412]
[1737018573522,0.60401,3311.7,3311.5,0.60404]
[1737018573818,2.538,3311.8,3311.6,0.60402]
[1737018574015,2.538,3311.8,3311.2,2.86735563]
[1737018574212,2.538,3311.8,3311.3,0.60407]
[1737018574420,0.60407,3311.4,3311.0,0.60413]
[1737018574714,3.2078,3311.5,3311.0,0.60413]
[1737018574922,0.6042,3310.7,3310.5,4.72731867]
[1737018575124,0.60415,3311.0,3310.7,0.60418]
[1737018575315,3.2078,3311.1,3310.9,0.60415]
[1737018575824,3.2078,3311.1,3310.8,2.86735563]
[1737018575825,0.60416,3310.9,3310.8,2.86735563]
[1737018576324,4.9297,3311.0,3310.4,4.23335563]
[1737018576517,3.2078,3311.1,3311.0,0.60414]
[1737018576921,3.2078,3311.1,3310.9,3.18935]
[1737018577222,0.60409,3311.3,3311.0,0.60412]
[1737018577419,3.2078,3311.5,3310.9,2.5852]
[1737018577615,0.60407,3311.4,3311.1,0.60411]
[1737018577815,3.81186,3311.5,3311.2,0.60409]
[1737018578217,3.2078,3311.5,3310.9,2.5852]
[1737018578421,0.60408,3311.3,3310.9,2.5852]
[1737018578619,3.2078,3311.5,3310.9,2.5852]
[1737018578814,3.2078,3311.5,3311.2,2.86735563]
[1737018579124,0.60407,3311.4,3311.2,2.86735563]
[1737018579522,3.2078,3311.5,3310.9,2.5852]
[1737018579723,3.2078,3311.5,3310.8,4.23335563]
[1737018579937,5.73467183,3311.4,3310.6,4.5738]
[1737018580526,0.60418,3310.8,3310.6,5.178]
[1737018580723,5.73467183,3311.4,3310.6,5.178]
[1737018581024,3.2078,3310.8,3310.0,2.86735563]
[1737018581222,3.2078,3310.8,3309.7,7.93511867]
[1737018581223,0.60431,3310.1,3309.8,0.60435]
[1737018581426,3.2078,3310.3,3309.7,4.72731867]
[1737018581726,2.494,3310.0,3309.4,0.60443]
[1737018581931,0.60443,3309.4,3309.2,6.07515563]
[1737018582221,0.60445,3309.3,3309.2,6.07515563]
[1737018582426,0.60445,3309.3,3309.1,4.72731867]
[1737018582427,3.2078,3309.5,3309.1,4.72731867]
[1737018582732,3.16546,3309.2,3309.1,4.72731867]
[1737018583123,6.47653961,3309.2,3309.1,4.72731867]
[1737018583321,6.47653961,3309.2,3308.4,2.86735563]
[1737018583322,5.87207961,3309.2,3308.4,2.86735563]
[1737018583530,0.60453,3308.9,3308.5,0.60459]
[1737018583826,0.60453,3308.9,3308.4,3.47195563]
[1737018584626,3.2078,3309.0,3308.7,0.60454]
[1737018584822,3.2078,3309.0,3308.3,1.366]
[1737018584823,3.2078,3309.0,3308.9,0.60452]
[1737018585131,3.2078,3309.6,3308.8,2.86735563]
[1737018585326,3.81221,3309.6,3309.2,2.86735563]
[1737018585625,0.60441,3309.5,3309.2,2.86735563]
[1737018586232,2.4999,3309.9,3309.2,2.86735563]
[1737018586531,0.60444,3309.4,3309.2,2.86735563]
[1737018586724,2.4999,3309.9,3309.2,3.47181563]
[1737018586925,0.60439,3309.7,3309.2,3.47181563]
[1737018587224,0.6044,3309.6,3309.2,3.47181563]
[1737018587528,2.4999,3309.9,3309.2,3.47181563]
[1737018587726,0.60436,3309.8,3309.3,0.60444]
[1737018587927,2.4999,3309.9,3309.2,2.86735563]
[1737018588127,3.2078,3309.6,3308.9,3.8881]
[1737018588329,0.60445,3309.3,3308.9,3.8881]
[1737018588627,0.60446,3309.3,3308.9,3.8881]
[1737018588827,2.4106,3309.2,3308.9,4.49262]
[1737018589128,0.6045,3309.1,3308.9,3.8881]
[1737018589626,2.4106,3309.2,3308.9,3.8881]
[1737018589825,3.01508,3309.2,3308.9,3.8881]
[1737018590030,2.4106,3309.2,3308.9,4.49262]
[1737018590223,2.4106,3309.2,3308.9,3.8881]
[1737018590429,2.3336,3309.5,3308.9,3.8881]
[1737018590629,2.3336,3309.5,3309.2,2.86735563]
[1737018590832,2.3336,3309.5,3309.2,3.47182563]
[1737018591326,2.3336,3309.5,3309.2,2.86735563]
[1737018591526,0.60443,3309.4,3309.2,2.86735563]
[1737018591925,2.3336,3309.5,3309.3,0.60444]
[1737018592127,2.3336,3309.5,3309.2,2.86735563]
[1737018592430,2.3336,3309.5,3309.2,3.47181563]
[1737018592632,3.2078,3309.6,3309.3,0.60443]
[1737018593025,3.2078,3309.6,3309.2,2.86735563]
[1737018593224,3.2078,3309.6,3309.3,0.60444]
[1737018593424,3.2078,3309.6,3309.4,0.60442]
[1737018593825,2.4009,3310.4,3309.5,3.2078]
[1737018594030,2.536,3310.3,3309.5,3.2078]
[1737018594225,3.2078,3310.5,3310.3,3.47161563]
[1737018594629,3.81203,3310.5,3310.4,2.3653]
[1737018594831,3.2078,3310.5,3310.4,2.3653]
[1737018595029,0.60429,3310.2,3309.9,2.86735563]
[1737018595233,3.2078,3310.2,3309.9,2.86735563]
[1737018595635,0.60432,3310.0,3309.9,2.86735563]
[1737018595836,0.60444,3309.4,3309.1,2.86735563]
[1737018596031,3.2078,3309.8,3309.1,2.86735563]
[1737018596229,0.6045,3309.0,3308.9,1.383]
[1737018596432,0.60448,3309.2,3308.9,1.383]
[1737018596638,0.6045,3309.0,3308.9,1.383]
[1737018597236,2.99719,3309.1,3308.9,1.383]
[1737018597439,0.6045,3309.0,3308.9,1.383]
[1737018597834,0.6045,3309.0,3308.7,5.23265563]
[1737018598428,2.99719,3309.1,3308.7,5.83720563]
[1737018598632,0.6045,3309.0,3308.7,5.23265563]
[1737018598927,2.99719,3309.1,3308.7,5.83720563]
[1737018599131,0.6045,3309.0,3308.7,5.23265563]
[1737018599331,2.3927,3309.1,3308.7,5.23265563]
[1737018599535,3.2078,3309.0,3308.5,3.2078]
[1737018599735,0.60455,3308.8,3308.4,1.384]
[1737018599934,0.6046,3308.5,3308.3,2.86735563]
[1737018600131,0.60466,3308.2,3308.0,3.2078]
[1737018600332,2.5254,3308.4,3307.9,2.86735563]
[1737018600531,2.3665,3308.3,3307.9,2.86735563]
[1737018600740,2.3665,3308.3,3308.0,0.60467]
[1737018600932,2.3665,3308.3,3307.9,2.86735563]
[1737018601131,2.5254,3308.9,3308.7,0.60455]
[1737018601339,2.5254,3308.9,3308.4,2.86735563]
[1737018601542,0.60458,3308.6,3308.3,1.384]